bitfinex/quotes_SOLUSD_20260217
["timestamp","ask_amount","ask_price","bid_price","bid_amount"]
[1771361267242,20.52608589,85.165,85.141,1.34795274]
[1771361267435,1.42608589,85.174,85.141,1.34795274]
[1771361267750,1.42608589,85.169,85.133,1.34795274]
[1771361268144,1.42608589,85.159,85.123,11.74766701]
[1771361268354,1.42608589,85.159,85.124,1.34795274]
[1771361269852,1.42608589,85.157,85.13,7.09578499]
[1771361270356,1.42608589,85.157,85.129,1.34795274]
[1771361271649,1.42608589,85.157,85.131,1.34795274]
[1771361272355,1.42608589,85.157,85.13,7.09578499]
[1771361272356,30.82315374,85.156,85.133,1.34795274]
[1771361273157,30.82315374,85.156,85.132,11.74646431]
[1771361273158,7.09578499,85.18,85.142,1.06854543]
[1771361273374,19.1,85.179,85.151,1.06854543]
[1771361273656,1.40565516,85.178,85.143,1.06854543]
[1771361274661,1.40565516,85.176,85.144,11.74480879]
[1771361274959,1.40565516,85.149,85.101,1.07001789]
[1771361275150,7.09578499,85.15,85.111,1.07001789]
[1771361275151,1.40565516,85.139,85.111,1.07001789]
[1771361275460,1.40565516,85.147,85.111,1.07001789]
[1771361276454,7.09578499,85.14,85.103,1.07072612]
[1771361276656,13.15092683,85.141,85.11,7.09578499]
[1771361277365,1.40565516,85.14,85.11,7.09578499]
[1771361277541,1.40565516,85.139,85.105,1.07144392]
[1771361279748,1.40565516,85.129,85.1,0.2]
[1771361279958,1.40565516,85.127,85.1,0.2]
[1771361280149,1.40565516,85.119,85.1,0.2]
[1771361281164,1.40565516,85.129,85.101,11.75074323]
[1771361281355,1.40565516,85.129,85.101,12.82495555]
[1771361282556,1.40565516,85.129,85.101,11.75074323]
[1771361282757,13.15267141,85.128,85.101,11.75074323]
[1771361282959,1.40565516,85.127,85.101,11.75074323]
[1771361283161,1.40565516,85.166,85.121,1.07558512]
[1771361283368,1.40565516,85.166,85.14,7.09578499]
[1771361283566,1.40565516,85.166,85.13,7.09578499]
[1771361284453,1.40565516,85.164,85.131,11.74660229]
[1771361286069,19.1,85.177,85.141,1.07752477]
[1771361286269,1.40565516,85.176,85.141,1.07752477]
[1771361286453,1.40565516,85.176,85.143,1.07752477]
[1771361286648,1.40565516,85.159,85.11,7.09578499]
[1771361286848,1.40565516,85.149,85.111,1.07816237]
[1771361287256,1.40565516,85.149,85.12,7.09578499]
[1771361288483,1.40565516,85.149,85.121,12.82677486]
[1771361290762,11.74362321,85.153,85.122,1.08062604]
[1771361291273,11.74362321,85.153,85.13,7.09578499]
[1771361291770,11.74362321,85.153,85.122,1.08062604]
[1771361292563,1.40565516,85.153,85.122,1.08062604]
[1771361292874,1.40565516,85.153,85.123,11.74770626]
[1771361293965,1.40565516,85.152,85.123,11.74770626]
[1771361296381,1.40565516,85.152,85.124,1.08295178]
[1771361297077,1.40307151,85.177,85.141,1.08321503]
[1771361297374,1.40307151,85.177,85.15,7.09578499]
[1771361299280,1.40307151,85.177,85.151,11.74384329]
[1771361299482,1.40307151,85.177,85.14,7.09578499]
[1771361300267,1.40307151,85.177,85.14,8.17976346]
[1771361300466,1.40307151,85.169,85.132,1.08397847]
[1771361300767,1.40307151,85.169,85.133,11.74632633]
[1771361300969,1.40307151,85.169,85.133,12.83053628]
[1771361301170,1.40307151,85.167,85.14,7.09578499]
[1771361301565,1.40307151,85.167,85.134,1.08420995]
[1771361301887,1.40307151,85.167,85.14,7.09578499]
[1771361303067,1.40307151,85.167,85.14,8.18046162]
[1771361303286,1.40307151,85.167,85.141,12.82989926]
[1771361303694,11.74177488,85.166,85.141,12.82989926]
[1771361306190,1.40307151,85.186,85.151,1.08536171]
[1771361306374,1.40307151,85.184,85.151,1.08536171]
[1771361306575,1.40307151,85.184,85.15,7.09578499]
[1771361306901,1.40307151,85.179,85.141,11.74522263]
[1771361308175,1.40307151,85.179,85.135,1.08536171]
[1771361308176,1.40307151,85.169,85.137,11.74567815]
[1771361308395,1.40307151,85.169,85.141,1.08580831]
[1771361308974,19.08,85.175,85.15,8.18180441]
[1771361309172,19.08,85.175,85.137,41.11011429]
[1771361309173,1.40307151,85.189,85.161,1.08601942]
[1771361309382,1.40307151,85.187,85.161,1.08601942]
[1771361309786,1.40307151,85.187,85.151,1.08601942]
[1771361310576,1.40307151,85.185,85.152,12.8299481]
[1771361310777,1.40307151,85.185,85.152,12.83015526]
[1771361311398,1.40307151,85.185,85.152,1.08644989]
[1771361311574,1.40307151,85.185,85.15,7.09578499]
[1771361311778,1.40307151,85.179,85.14,8.18243967]
[1771361311977,1.40307151,85.179,85.141,1.08665468]
[1771361312875,11.74012068,85.178,85.15,7.09578499]
[1771361313085,1.39525703,85.177,85.15,7.09578499]
[1771361313904,1.39525703,85.177,85.15,2.38631278]
[1771361315294,1.39525703,85.184,85.16,2.38631278]
[1771361315498,1.39525703,85.184,85.161,1.08748944]
[1771361316098,1.39525703,85.184,85.154,1.08768157]
[1771361316307,2.38631278,85.18,85.15,2.38631278]
[1771361316512,1.39525703,85.179,85.15,14.13028491]
[1771361316687,1.39525703,85.179,85.151,11.74384329]
[1771361317503,19.08,85.188,85.151,11.74384329]
[1771361317504,1.39525703,85.177,85.151,11.74384329]
[1771361317884,1.39525703,85.177,85.141,6.8]
[1771361318084,1.39525703,85.177,85.14,2.38625498]
[1771361318284,1.39525703,85.177,85.15,2.38625498]
[1771361318802,1.39525703,85.177,85.145,1.08809463]
[1771361320811,1.39525703,85.175,85.15,2.38625498]
[1771361321901,1.39525703,85.175,85.152,1.08888338]
[1771361322326,1.39525703,85.183,85.16,2.38625498]
[1771361322498,11.73943157,85.183,85.16,2.38625498]
[1771361322694,1.39525703,85.182,85.16,2.38625498]
[1771361324018,11.73801833,85.194,85.171,1.08923786]
[1771361324513,1.39525703,85.197,85.171,1.08923786]
[1771361325213,11.73764026,85.196,85.171,1.08923786]
[1771361326117,11.73604318,85.208,85.181,1.08978195]
[1771361326297,1.3595458,85.207,85.174,1.08978195]
[1771361326997,1.3595458,85.207,85.18,2.38625498]
[1771361327400,1.3595458,85.207,85.181,1.0899612]
[1771361328219,1.3595458,85.207,85.182,11.73956939]
[1771361328817,1.3595458,85.217,85.191,1.09032482]
[1771361329215,19.08,85.218,85.191,1.09032482]
[1771361329216,13.09443126,85.216,85.191,1.09032482]
[1771361329421,1.3595458,85.215,85.181,11.73970721]
[1771361330322,1.3595458,85.213,85.181,11.73970721]
[1771361330517,1.3595458,85.213,85.182,1.09048319]
[1771361330709,1.3595458,85.213,85.19,2.38625498]
[1771361331818,11.73495311,85.216,85.191,1.090654]
[1771361333301,1.45720748,85.216,85.191,1.090654]
[1771361335217,11.73502317,85.215,85.191,1.090654]
[1771361335423,1.45720748,85.214,85.19,2.38625498]
[1771361336309,1.45720748,85.214,85.191,11.73832916]
[1771361337009,1.45720748,85.214,85.19,2.38625498]
[1771361338707,11.7352986,85.213,85.19,2.38625498]
[1771361339021,1.45720748,85.212,85.19,2.38625498]
[1771361340516,1.45720748,85.21,85.18,14.12608203]
[1771361341034,1.45720748,85.21,85.18,15.21845271]
[1771361341332,1.45720748,85.21,85.19,2.38625498]
[1771361342108,1.45720748,85.21,85.181,1.09237068]
[1771361342419,1.45720748,85.21,85.19,2.38625498]
[1771361343441,1.45720748,85.209,85.183,1.09268231]
[1771361343634,1.45720748,85.209,85.19,2.38625498]
[1771361345330,1.45720748,85.209,85.183,1.09268231]
[1771361345331,1.45720748,85.199,85.173,6.8]
[1771361345628,1.45720748,85.199,85.16,2.38625498]
[1771361345832,1.45720748,85.199,85.16,3.47920094]
[1771361346134,1.45720748,85.199,85.161,1.09308897]
[1771361346835,1.45720748,85.199,85.17,2.38625498]
[1771361348140,1.45720748,85.197,85.17,14.12741295]
[1771361348342,11.73584949,85.209,85.19,2.38625498]
[1771361348529,2.38625498,85.26,85.2,2.38625498]
[1771361348530,11.73509331,85.215,85.2,2.38625498]
[1771361348928,11.73509331,85.215,85.197,1.39535386]
[1771361349142,11.73509331,85.215,85.19,2.38625498]
[1771361349326,11.73509331,85.215,85.191,1.39535386]
[1771361349525,2.38625498,85.22,85.187,11.73880955]
[1771361349727,2.38625498,85.21,85.17,2.38625498]
[1771361349939,2.38625498,85.21,85.172,1.39535386]
[1771361350317,19.12,85.209,85.172,1.39535386]
[1771361350544,1.45720748,85.208,85.172,1.39535386]
[1771361351116,1.45720748,85.206,85.18,2.38625498]
[1771361351739,1.45720748,85.204,85.174,1.39535386]
[1771361351920,1.45720748,85.204,85.181,1.39535386]
[1771361352241,1.45720748,85.204,85.175,1.39535386]
[1771361352647,1.45720748,85.204,85.18,2.38625498]
[1771361352820,1.45720748,85.204,85.154,4.61729252]
[1771361352821,1.45720748,85.204,85.17,2.38625498]
[1771361353024,1.45720748,85.204,85.17,3.78160884]
[1771361353937,19.12,85.207,85.17,3.78160884]
[1771361353938,1.45720748,85.202,85.172,1.39535386]
[1771361354144,1.45720748,85.202,85.181,1.39535386]
[1771361361630,1.35715212,85.208,85.183,1.36393378]
[1771361362048,1.35715212,85.208,85.18,2.38625498]
[1771361362356,1.35715212,85.199,85.166,11.74176267]
[1771361362942,1.35715212,85.199,85.166,13.10569645]
[1771361363469,1.35715212,85.197,85.167,1.36393378]
[1771361363638,1.35715212,85.189,85.157,1.36393378]
[1771361363837,2.38625498,85.19,85.157,1.36393378]
[1771361363838,1.35715212,85.187,85.157,1.36393378]
[1771361364040,1.35715212,85.187,85.161,1.36393378]
[1771361364355,20.49715212,85.188,85.161,1.36393378]
[1771361364537,1.35715212,85.187,85.161,1.36393378]
[1771361365235,19.14,85.188,85.161,1.36393378]
[1771361365434,11.73888034,85.187,85.161,1.36393378]
[1771361365633,1.35715212,85.179,85.128,1.36393378]
[1771361365832,11.73888034,85.187,85.151,1.36393378]
[1771361366060,1.35715212,85.188,85.161,1.36393378]
[1771361366734,1.35715212,85.195,85.171,1.36393378]
[1771361366934,11.73791581,85.194,85.171,1.36393378]
[1771361367437,1.35715212,85.193,85.171,1.36393378]
[1771361369360,1.35715212,85.191,85.166,13.1056602]
[1771361370357,1.35715212,85.191,85.167,1.36393378]
[1771361372360,1.35715212,85.191,85.168,11.74149915]
[1771361372562,1.35715212,85.189,85.168,11.74149915]
[1771361373256,1.35715212,85.189,85.147,1.36393378]
[1771361373463,2.38625498,85.18,85.149,1.36393378]
[1771361373758,2.38625498,85.18,85.151,1.36393378]
[1771361373759,1.35715212,85.18,85.151,1.36393378]
[1771361375360,1.35715212,85.18,85.15,2.38625498]
[1771361375361,20.49715212,85.189,85.161,1.36393378]
[1771361376343,1.35715212,85.188,85.161,1.36393378]
[1771361376851,1.35715212,85.188,85.153,1.36393378]
[1771361377745,1.35715212,85.186,85.154,11.74342955]
[1771361379159,1.35715212,85.186,85.154,13.10736333]
[1771361379663,1.35715212,85.186,85.155,1.36393378]
[1771361379860,11.73915595,85.185,85.156,11.74315374]
[1771361380054,1.35715212,85.184,85.156,11.74315374]
[1771361380263,1.35715212,85.184,85.157,1.36393378]
[1771361381850,1.35715212,85.182,85.158,11.74287794]
[1771361382052,1.35715212,85.182,85.159,1.36393378]
[1771361382649,29.34487979,85.194,85.158,11.74287794]
[1771361382650,1.35715212,85.195,85.161,1.36393378]
[1771361383170,1.35715212,85.189,85.161,1.36393378]
[1771361384245,1.35715212,85.187,85.151,1.36393378]
[1771361384447,1.35715212,85.187,85.152,1.49224061]
[1771361389574,1.37512745,85.185,85.154,1.49224061]
[1771361392073,1.37512745,85.185,85.156,1.49224061]
[1771361394081,1.37512745,85.185,85.158,1.49876811]
[1771361397290,13.20154807,85.201,85.171,1.49876811]
[1771361397575,29.33932381,85.21,85.171,1.49876811]
[1771361397576,1.46447564,85.199,85.171,1.49876811]
[1771361397990,1.46447564,85.199,85.159,41.09959017]
[1771361397991,2.38643742,85.19,85.16,2.38643742]
[1771361398167,1.46447564,85.189,85.159,42.59835828]
[1771361398481,1.46447564,85.189,85.16,1.49876811]
[1771361399078,1.46447564,85.189,85.161,1.49876811]
[1771361399272,1.46447564,85.189,85.163,1.49876811]
[1771361399480,1.46447564,85.194,85.163,1.49876811]
[1771361399981,1.46447564,85.194,85.16,2.38643742]
[1771361400184,46.93008471,85.234,85.152,1.49876811]
[1771361400387,8.51497452,85.26,85.211,1.49876811]
[1771361400691,2.48643742,85.25,85.186,1.50692818]
[1771361400891,2.38643742,85.24,85.191,1.50692818]
[1771361401185,41.05620006,85.249,85.211,1.50692818]
[1771361401386,19.48,85.248,85.21,2.38643742]
[1771361401691,19.5,85.247,85.221,1.50692818]
[1771361401875,0.1,85.25,85.23,2.38643742]
[1771361402073,0.1,85.25,85.194,1.50692818]
[1771361402074,2.48643742,85.25,85.194,1.50692818]
[1771361402267,2.48643742,85.25,85.192,1.50692818]
[1771361402268,2.38643742,85.24,85.192,1.50692818]
[1771361402467,0.1,85.25,85.211,1.50692818]
[1771361402674,19.52,85.249,85.211,1.50692818]
[1771361403185,2.38643742,85.24,85.19,2.38643742]
[1771361403365,2.38643742,85.23,85.18,2.38643742]
[1771361403565,2.38643742,85.23,85.136,93.96719672]
[1771361403566,2.38643742,85.23,85.181,1.50692818]
[1771361403772,4.61729252,85.226,85.18,2.38643742]
[1771361403984,4.61729252,85.226,85.181,1.50692818]
[1771361404188,41.06101666,85.239,85.191,1.50692818]
[1771361404494,19.54,85.225,85.201,1.50692818]
[1771361405092,19.56,85.236,85.211,1.50692818]
[1771361405386,11.7322696,85.235,85.211,1.50692818]
[1771361405692,29.32604216,85.249,85.213,1.50692818]
[1771361405693,11.73048048,85.248,85.213,1.50692818]
[1771361405886,19.56,85.247,85.221,1.50692818]
[1771361407090,0.1,85.25,85.231,1.50692818]
[1771361407388,19.58,85.247,85.231,1.50692818]
[1771361408518,19.58,85.271,85.241,1.50692818]
[1771361408794,19.58,85.276,85.261,1.50692818]
[1771361408967,19.58,85.276,85.232,41.06438896]
[1771361408968,0.02808913,85.269,85.24,3.8933656]
[1771361409279,0.02808913,85.269,85.241,1.50692818]
[1771361409280,19.58,85.268,85.241,1.50692818]
[1771361409481,0.02808913,85.266,85.233,1.50692818]
[1771361409670,0.02808913,85.266,85.23,2.38643742]
[1771361409878,0.02808913,85.266,85.225,1.50692818]
[1771361410196,0.02808913,85.266,85.231,1.50692818]
[1771361410393,19.6,85.265,85.241,1.50692818]
[1771361410785,0.1,85.27,85.25,2.38643742]
[1771361410971,60.68053807,85.269,85.24,2.38643742]
[1771361411172,0.03396781,85.268,85.24,2.38643742]
[1771361411469,31.3275915,85.269,85.241,1.50692818]
[1771361412100,31.3275915,85.269,85.251,1.50692818]
[1771361412296,0.1,85.27,85.251,1.50692818]
[1771361412297,19.6,85.268,85.251,1.50692818]
[1771361412500,19.6,85.267,85.251,1.50692818]
[1771361412973,0.1,85.27,85.251,1.50692818]
[1771361413178,19.6,85.266,85.251,1.50692818]
[1771361414078,19.62,85.265,85.251,1.50692818]
[1771361414301,11.72429155,85.293,85.261,1.50692818]
[1771361414493,0.04331806,85.291,85.261,1.50692818]
[1771361415083,41.03502044,85.293,85.261,1.50692818]
[1771361415401,0.04507448,85.291,85.263,1.50692818]
[1771361415573,0.04507448,85.291,85.24,2.38643742]
[1771361415574,22.00643742,85.29,85.24,2.38643742]
[1771361415779,0.04679528,85.279,85.241,1.50692818]
[1771361415977,0.04679528,85.279,85.23,2.38643742]
[1771361415978,0.04679528,85.279,85.234,1.50692818]
[1771361416187,0.04679528,85.278,85.23,2.38643742]
[1771361416385,0.04679528,85.275,85.23,2.38643742]
[1771361416585,0.04679528,85.275,85.231,1.50692818]
[1771361417505,0.04851028,85.273,85.231,1.50692818]
[1771361418200,11.72731643,85.271,85.241,1.50692818]
[1771361418403,19.64,85.27,85.241,1.50692818]
[1771361418704,19.64,85.27,85.243,1.50692818]
[1771361420108,0.05358368,85.269,85.243,1.50692818]
[1771361420308,11.7275915,85.269,85.245,1.50692818]
[1771361420614,19.64,85.268,85.245,1.50692818]
[1771361420786,19.64,85.267,85.245,1.50692818]
[1771361421798,11.7275915,85.269,85.245,1.50692818]
[1771361422106,11.72511637,85.287,85.261,1.50692818]
[1771361422286,19.64,85.286,85.261,1.50692818]
[1771361422486,31.36539133,85.285,85.261,1.50692818]
[1771361423709,11.72539133,85.285,85.261,1.50692818]
[1771361424015,19.66,85.284,85.261,1.50692818]
[1771361424400,11.72566631,85.283,85.261,1.50692818]
[1771361424922,0.0616034,85.282,85.231,1.50692818]
[1771361425220,0.0616034,85.279,85.241,1.50692818]
[1771361425510,11.72566631,85.283,85.26,3.8933656]
[1771361425808,19.66,85.282,85.261,1.50692818]
[1771361425998,0.0616034,85.286,85.272,1.37939775]
[1771361425999,18.12307315,85.286,85.272,1.37939775]
[1771361426205,19.66,85.285,85.28,2.38643742]
[1771361426406,19.66,85.285,85.276,1.37939775]
[1771361427107,1.49471735,85.3,85.276,1.37939775]
[1771361427325,19.66,85.288,85.28,2.38643742]
[1771361427522,19.66,85.291,85.28,2.38643742]
[1771361427837,15.13408396,85.291,85.28,2.38643742]
[1771361428033,1.39471735,85.298,85.27,3.76583517]
[1771361428337,19.66,85.29,85.268,1.37939775]
[1771361428637,19.66,85.29,85.28,2.38643742]
[1771361429523,19.66,85.289,85.281,1.37939775]
[1771361429726,18.16494633,85.295,85.28,2.38643742]
[1771361429929,18.16494633,85.295,85.29,2.38643742]
[1771361430309,18.16494633,85.295,85.261,41.05042163]
[1771361430310,18.16494633,85.295,85.28,2.38643742]
[1771361430510,19.66,85.297,85.28,2.38643742]
[1771361431322,1.54598892,85.296,85.261,41.05042163]
[1771361431524,1.54598892,85.296,85.28,2.38643742]
[1771361431826,1.54598892,85.294,85.27,2.38643742]
[1771361433330,1.54598892,85.292,85.25,2.38643742]
[1771361433834,1.54598892,85.279,85.24,2.38643742]
[1771361434210,1.54598892,85.277,85.24,2.38643742]
[1771361435733,1.54598892,85.277,85.23,2.41589234]
[1771361435734,1.54598892,85.275,85.25,2.38643742]
[1771361437436,1.54598892,85.273,85.25,2.38643742]
[1771361438034,1.54598892,85.271,85.24,2.38643742]
[1771361438335,1.54598892,85.269,85.23,14.11932348]
[1771361439436,1.54598892,85.259,85.22,2.38643742]
[1771361439646,1.54598892,85.257,85.23,2.38643742]
[1771361439816,19.66,85.256,85.23,2.38643742]
[1771361440021,1.54598892,85.255,85.23,2.38213075]
[1771361441044,1.54598892,85.255,85.221,11.73419697]
[1771361441045,1.54598892,85.253,85.22,2.38213075]
[1771361442839,1.54598892,85.253,85.216,0.05722235]
[1771361442840,1.54598892,85.253,85.23,2.38213075]
[1771361443631,1.54598892,85.251,85.22,2.38213075]
[1771361444032,29.32138265,85.263,85.201,41.07933005]
[1771361444033,1.54598892,85.266,85.241,0.08337454]
[1771361444240,19.68,85.265,85.25,2.38213075]
[1771361444650,1.54598892,85.264,85.24,2.38213075]
[1771361444855,1.54598892,85.264,85.23,0.08843597]
[1771361444856,1.54598892,85.262,85.23,2.38213075]
[1771361445655,1.54598892,85.257,85.221,11.73419697]
[1771361446350,1.54598892,85.255,85.221,11.73419697]
[1771361447358,1.54598892,85.249,85.22,2.38213075]
[1771361447753,1.54598892,85.249,85.2,31.724678]
[1771361447754,1.54598892,85.239,85.2,2.38213075]
[1771361447931,1.54598892,85.237,85.2,2.38213075]
[1771361448130,1.54598892,85.237,85.21,2.38213075]
[1771361448748,21.20598892,85.237,85.22,2.38213075]
[1771361448931,19.66,85.237,85.22,2.38213075]
[1771361449331,1.54598892,85.236,85.191,29.34572037]
[1771361449558,1.54598892,85.235,85.2,2.38213075]
[1771361449847,1.54598892,85.233,85.201,11.73695144]
[1771361451280,1.54598892,85.219,85.161,11.74246427]
[1771361451430,1.54598892,85.179,85.14,2.38213075]
[1771361451636,1.54598892,85.169,85.14,2.38213075]
[1771361451842,1.54598892,85.169,85.137,11.74576134]
[1771361451843,1.54598892,85.169,85.132,11.74632774]
[1771361452050,1.54598892,85.167,85.136,11.74590022]
[1771361452230,1.54598892,85.167,85.144,11.74467834]
[1771361452435,19.66,85.169,85.147,11.74426412]
[1771361452731,11.73722696,85.199,85.161,0.06576124]
[1771361452951,19.64,85.198,85.161,0.06576124]
[1771361453148,11.73722696,85.199,85.16,2.38213075]
[1771361453348,19.66,85.198,85.16,2.38213075]
[1771361453546,2.38213075,85.19,85.153,0.07967324]
[1771361453861,19.66,85.198,85.151,41.10345151]
[1771361453862,2.38213075,85.18,85.151,41.10345151]
[1771361454236,2.38213075,85.18,85.151,11.74384329]
[1771361454458,1.59017122,85.159,85.113,0.28649494]
[1771361454654,2.38213075,85.15,85.113,0.28649494]
[1771361454845,3.97230197,85.16,85.121,0.29342552]
[1771361455045,3.97230197,85.16,85.112,41.12228592]
[1771361455046,19.64,85.162,85.131,0.29342552]
[1771361455252,19.64,85.162,85.13,2.38213075]
[1771361455253,2.38213075,85.16,85.121,0.29342552]
[1771361455442,1.59017122,85.159,85.121,0.29342552]
[1771361455839,1.59017122,85.149,85.122,11.74784427]
[1771361456263,1.59017122,85.149,85.121,0.29342552]
[1771361456471,1.59017122,85.142,85.112,29.6733314]
[1771361456755,1.59017122,85.154,85.114,0.30027003]
[1771361456958,1.59017122,85.149,85.114,0.30027003]
[1771361457263,2.38213075,85.12,85.11,0.2]
[1771361457465,1.59017122,85.109,85.1,0.2]
[1771361457757,1.59017122,85.118,85.1,0.2]
[1771361457956,1.59017122,85.139,85.102,0.3136077]
[1771361459072,1.59017122,85.149,85.102,0.3136077]
[1771361459365,1.59017122,85.158,85.12,7.11069151]
[1771361459669,1.59017122,85.158,85.121,0.32010503]
[1771361459872,1.59017122,85.158,85.122,11.74784427]
[1771361460358,1.59017122,85.149,85.112,11.74922455]
[1771361460745,11.74300895,85.158,85.112,11.74922455]
[1771361460746,1.59017122,85.139,85.112,11.74922455]
[1771361461562,1.59017122,85.139,85.112,41.12228592]
[1771361462159,1.59017122,85.149,85.113,0.33951248]
[1771361462349,1.59017122,85.149,85.12,7.11069151]
[1771361462557,1.59017122,85.159,85.121,0.33951248]
[1771361462970,1.59017122,85.158,85.121,0.33951248]
[1771361463174,1.59017122,85.149,85.112,11.74922455]
[1771361464171,1.59017122,85.147,85.106,11.75005287]
[1771361464865,1.59017122,85.147,85.106,41.12518505]
[1771361465060,1.59017122,85.129,85.106,11.75005287]
[1771361465262,1.59017122,85.129,85.1,11.95086152]
[1771361465770,1.59017122,85.12,85.1,11.95086152]
[1771361467158,1.59017122,85.129,85.1,19.06155303]
[1771361467360,1.59017122,85.139,85.101,0.37037782]
[1771361467570,1.59017122,85.138,85.1,19.06155303]
[1771361467774,1.59017122,85.129,85.101,11.75074323]
[1771361468456,1.59017122,85.127,85.101,11.75074323]
[1771361469375,7.11069151,85.13,85.102,0.38222653]
[1771361469682,8.70086273,85.14,85.102,0.38222653]
[1771361469974,1.59017122,85.139,85.102,0.38222653]
[1771361470671,1.59017122,85.139,85.103,12.13851403]
[1771361470868,1.59017122,85.139,85.104,0.39379951]
[1771361471459,1.59017122,85.129,85.101,11.75074323]
[1771361471780,7.11069151,85.12,85.101,11.75074323]
[1771361471971,1.59017122,85.119,85.101,11.75074323]
[1771361472473,1.59017122,85.129,85.101,11.75074323]
[1771361472675,1.59017122,85.127,85.101,11.75074323]
[1771361473451,1.42351867,85.127,85.101,11.75074323]
[1771361478289,7.11069151,85.13,85.102,0.59846651]
[1771361478674,1.66802621,85.129,85.102,0.59846651]
[1771361478917,21.26802621,85.139,85.104,0.60273421]
[1771361479075,1.66802621,85.149,85.111,0.60273421]
[1771361479397,1.66802621,85.148,85.111,0.60273421]
[1771361479767,1.66802621,85.148,85.12,7.11069151]
[1771361479975,1.66802621,85.148,85.121,0.60692892]
[1771361480992,1.66802621,85.139,85.117,11.74850047]
[1771361483960,1.66802621,85.139,85.105,41.74898246]
[1771361484488,1.66802621,85.145,85.111,0.62331417]
[1771361484797,1.66802621,85.153,85.12,2.3888613]
[1771361484973,1.66802621,85.157,85.12,3.01615365]
[1771361485794,1.66802621,85.129,85.101,11.75074323]
[1771361486496,11.74606215,85.135,85.102,0.63122811]
[1771361486788,1.66802621,85.137,85.102,0.63122811]
[1771361486967,11.74480879,85.144,85.111,0.63512653]
[1771361487381,1.66802621,85.154,85.111,0.63512653]
[1771361487789,1.66802621,85.149,85.111,0.63512653]
[1771361488003,1.66802621,85.147,85.112,11.74922455]
[1771361488414,1.66802621,85.147,85.113,0.638949]
[1771361490215,1.66802621,85.147,85.114,11.74894846]
[1771361490415,1.66802621,85.147,85.115,0.64650445]
[1771361490706,13.41255912,85.146,85.115,0.64650445]
[1771361490910,1.66802621,85.145,85.115,0.64650445]
[1771361491315,1.66802621,85.145,85.114,11.74894846]
[1771361491491,1.66802621,85.139,85.114,11.74894846]
[1771361492205,1.66802621,85.139,85.112,29.37306137]
[1771361495504,1.66802621,85.147,85.113,0.66462004]
[1771361497098,1.66802621,85.146,85.114,11.74894846]
[1771361497808,1.66802621,85.146,85.115,0.67502035]
[1771361498000,2.3888613,85.15,85.115,0.67502035]
[1771361498206,11.74411913,85.149,85.115,0.67502035]
[1771361498409,13.41214534,85.149,85.115,0.67502035]
[1771361499003,1.66802621,85.149,85.116,41.1203534]
[1771361499313,1.66802621,85.149,85.117,0.67840197]
[1771361500298,1.66802621,85.147,85.117,0.67840197]
[1771361501691,1.66802621,85.147,85.119,0.68505157]
[1771361502433,2.38832722,85.15,85.119,0.68505157]
[1771361502645,2.38832722,85.15,85.118,41.11938719]
[1771361502646,11.74151783,85.168,85.131,0.68831797]
[1771361502852,1.66802621,85.189,85.151,0.69154193]
[1771361503026,11.73750249,85.197,85.14,2.38832722]
[1771361503027,1.66802621,85.179,85.14,2.38832722]
[1771361503335,1.66802621,85.169,85.134,0.69154193]
[1771361503939,1.66802621,85.169,85.136,0.69476229]
[1771361504932,1.66802621,85.169,85.14,2.38832722]
[1771361505139,1.61571251,85.167,85.136,0.69476229]
[1771361505442,1.61571251,85.177,85.151,0.70102174]
[1771361506319,1.61571251,85.177,85.152,11.74370537]
[1771361506518,11.74039635,85.176,85.148,11.74423006]
[1771361506722,1.61571251,85.175,85.148,11.74423006]
[1771361508430,1.61571251,85.175,85.143,0.70412904]
[1771361508431,1.61571251,85.175,85.145,0.7101831]
[1771361508943,1.61571251,85.173,85.145,0.7101831]
[1771361509107,1.61571251,85.173,85.144,11.74480879]
[1771361511029,1.61571251,85.173,85.144,12.46378915]
[1771361512910,1.67906412,85.169,85.14,11.74528061]
[1771361514131,1.67906412,85.167,85.131,11.74660229]
[1771361514336,1.67906412,85.167,85.132,0.7302267]
[1771361517916,1.67906412,85.159,85.126,11.74719181]
[1771361518518,1.67906412,85.139,85.107,0.74102503]
[1771361518723,1.67906412,85.139,85.111,11.74931102]
[1771361519837,1.67906412,85.149,85.113,11.7490865]
[1771361520150,1.67906412,85.149,85.114,0.74623328]
[1771361520729,1.67906412,85.147,85.114,0.74623328]
[1771361522343,1.67906412,85.147,85.121,0.75134721]
[1771361522846,1.67906412,85.169,85.121,0.75134721]
[1771361523145,13.42042541,85.169,85.141,0.75385148]
[1771361523349,1.67906412,85.168,85.141,0.75385148]
[1771361523646,1.67906412,85.149,85.09,11.95220031]
[1771361523942,181.99110003,85.169,85.1,11.95075494]
[1771361523943,1.67906412,85.129,85.1,11.95075494]
[1771361524124,1.67906412,85.149,85.101,0.75631959]
[1771361524323,1.67906412,85.149,85.123,0.75631959]
[1771361525343,1.67906412,85.156,85.123,0.75631959]
[1771361526240,1.67906412,85.156,85.124,11.74756825]
[1771361526646,1.67906412,85.156,85.13,2.38832722]
[1771361527648,1.67906412,85.156,85.13,3.15184581]